bitfinex/quotes_BTCUSD_20241021
["timestamp","ask_amount","ask_price","bid_price","bid_amount"]
[1729489562656,0.000829,69070.0,69069.0,0.49107158]
[1729489562864,0.000829,69070.0,69069.0,0.68153348]
[1729489563300,0.000829,69070.0,69069.0,0.57307158]
[1729489564483,0.000829,69070.0,69069.0,0.57306264]
[1729489565326,0.000829,69070.0,69069.0,0.57306204]
[1729489568208,0.000829,69070.0,69069.0,0.53304762]
[1729489568455,0.000829,69070.0,69069.0,0.57304654]
[1729489568702,0.000829,69070.0,69069.0,0.5513318]
[1729489569192,0.000829,69070.0,69069.0,0.57304466]
[1729489571225,0.000829,69070.0,69069.0,0.55067287]
[1729489571867,0.000829,69070.0,69069.0,0.55567287]
[1729489572069,0.000829,69070.0,69069.0,0.55567281]
[1729489573560,0.000829,69070.0,69069.0,0.21299081]
[1729489574408,0.145609,69070.0,69069.0,0.03731817]
[1729489575050,0.145609,69070.0,69069.0,0.04231817]
[1729489575278,0.145609,69070.0,69069.0,0.03231817]
[1729489575494,0.145609,69070.0,69069.0,0.04231817]
[1729489575921,0.145609,69070.0,69069.0,0.02646219]
[1729489576559,0.145609,69070.0,69069.0,0.03731736]
[1729489576752,0.145609,69070.0,69069.0,0.03231736]
[1729489577184,0.000829,69070.0,69069.0,0.04231736]
[1729489577391,0.000829,69070.0,69069.0,0.03731736]
[1729489577634,0.145609,69070.0,69069.0,0.03731736]
[1729489578292,0.145609,69070.0,69069.0,0.04231736]
[1729489578702,0.000829,69070.0,69069.0,0.04231736]
[1729489579822,0.000829,69070.0,69069.0,0.03731736]
[1729489580801,0.000829,69070.0,69069.0,0.04231736]
[1729489581825,0.000829,69070.0,69069.0,0.12917201]
[1729489583070,0.000829,69070.0,69069.0,0.04231736]
[1729489583277,0.000829,69070.0,69069.0,0.12917201]
[1729489583866,0.000829,69070.0,69069.0,0.03146233]
[1729489584101,0.000829,69070.0,69069.0,0.04231747]
[1729489584527,0.000829,69070.0,69069.0,0.12917031]
[1729489585335,0.000829,69070.0,69069.0,0.12917068]
[1729489586154,0.000829,69070.0,69069.0,0.04231747]
[1729489586358,0.000829,69070.0,69069.0,0.12916998]
[1729489587182,0.000829,69070.0,69069.0,0.04231747]
[1729489587363,0.000829,69070.0,69069.0,0.12916997]
[1729489588259,0.000829,69070.0,69069.0,0.04231747]
[1729489588463,0.000829,69070.0,69069.0,0.12916996]
[1729489591378,0.000829,69070.0,69069.0,0.11739936]
[1729489591599,0.000829,69070.0,69069.0,0.10654422]
[1729489591809,0.000829,69070.0,69069.0,0.12916977]
[1729489592216,0.000829,69070.0,69069.0,0.04231728]
[1729489592422,0.000829,69070.0,69069.0,0.18709928]
[1729489593033,0.000829,69070.0,69069.0,0.18209928]
[1729489593240,0.000829,69070.0,69069.0,0.03731728]
[1729489593439,0.000829,69070.0,69069.0,0.04231728]
[1729489593727,0.000829,69070.0,69069.0,0.03731728]
[1729489593935,0.000829,69070.0,69069.0,0.03231728]
[1729489594153,0.000829,69070.0,69069.0,0.04231728]
[1729489594849,0.000829,69070.0,69069.0,0.03731728]
[1729489595069,0.000829,69070.0,69069.0,0.04231728]
[1729489595275,0.000829,69070.0,69069.0,0.03054663]
[1729489595542,0.000829,69070.0,69069.0,0.04231709]
[1729489600868,0.000829,69070.0,69069.0,0.15087943]
[1729489601127,0.000829,69070.0,69069.0,0.04231709]
[1729489602746,0.000829,69070.0,69069.0,0.03054663]
[1729489602968,0.000829,69070.0,69069.0,0.03146219]
[1729489604047,0.000829,69070.0,69069.0,0.04232347]
[1729489604903,0.000829,69070.0,69069.0,0.04232586]
[1729489606594,0.000829,69070.0,69069.0,0.03779876]
[1729489606805,0.000829,69070.0,69069.0,0.04232588]
[1729489607053,0.000829,69070.0,69069.0,0.05318957]
[1729489609158,0.000829,69070.0,69069.0,0.14004203]
[1729489610006,0.000829,69070.0,69069.0,0.14004269]
[1729489610636,0.000829,69070.0,69069.0,0.1400428]
[1729489611308,0.000829,69070.0,69069.0,0.05318968]
[1729489612158,0.000829,69070.0,69069.0,0.04232599]
[1729489612796,0.000829,69070.0,69069.0,0.18710799]
[1729489614740,0.000829,69070.0,69069.0,0.18710844]
[1729489614952,0.000829,69070.0,69069.0,0.17533787]
[1729489615156,0.000829,69070.0,69069.0,0.18710844]
[1729489616225,0.000829,69070.0,69069.0,0.29569147]
[1729489618598,0.000829,69070.0,69069.0,0.29569143]
[1729489618806,0.000829,69070.0,69069.0,0.44465058]
[1729489619010,0.000829,69070.0,69069.0,0.33606755]
[1729489620869,0.000829,69070.0,69069.0,0.33106755]
[1729489621308,0.000829,69070.0,69069.0,0.33606755]
[1729489621500,0.000829,69070.0,69069.0,0.33106755]
[1729489621828,0.000829,69070.0,69069.0,0.32606755]
[1729489622000,0.000829,69070.0,69069.0,0.33106755]
[1729489622191,0.000829,69070.0,69069.0,0.33606755]
[1729489622755,0.000829,69070.0,69069.0,0.33106755]
[1729489622958,0.000829,69070.0,69069.0,0.32606755]
[1729489623159,0.000829,69070.0,69069.0,0.33106755]
[1729489623419,0.000829,69070.0,69069.0,0.33606755]
[1729489626761,0.000829,69070.0,69069.0,0.33106755]
[1729489626966,0.000829,69070.0,69069.0,0.32606708]
[1729489627203,0.000829,69070.0,69069.0,0.33106708]
[1729489627396,0.000829,69070.0,69069.0,0.32606708]
[1729489627829,0.000829,69070.0,69069.0,0.33106708]
[1729489628257,0.000829,69070.0,69069.0,0.33606708]
[1729489628700,0.000829,69070.0,69069.0,0.33106708]
[1729489629117,0.000829,69070.0,69069.0,0.33606708]
[1729489631625,0.000829,69070.0,69069.0,0.32606708]
[1729489631835,0.000829,69070.0,69069.0,0.33106708]
[1729489632037,0.000829,69070.0,69069.0,0.33606708]
[1729489632249,0.000829,69070.0,69069.0,0.32520298]
[1729489632457,0.000829,69070.0,69069.0,0.32020298]
[1729489632687,0.000829,69070.0,69069.0,0.32520298]
[1729489633123,0.000829,69070.0,69069.0,0.33106222]
[1729489633531,0.000829,69070.0,69069.0,0.33606222]
[1729489633771,0.000829,69070.0,69069.0,0.33106222]
[1729489634597,0.000829,69070.0,69069.0,0.33606222]
[1729489635909,0.000829,69070.0,69069.0,0.45896222]
[1729489636128,0.000829,69070.0,69069.0,0.5375619]
[1729489637303,0.000829,69070.0,69069.0,0.5325619]
[1729489637482,0.000829,69070.0,69069.0,0.5275619]
[1729489637691,0.000829,69070.0,69069.0,0.5375619]
[1729489639564,0.000829,69070.0,69069.0,0.53756185]
[1729489643194,0.000829,69070.0,69069.0,0.53755863]
[1729489643962,0.000829,69070.0,69069.0,0.53255863]
[1729489644281,0.000829,69070.0,69069.0,0.52755863]
[1729489644517,0.000829,69070.0,69069.0,0.53255863]
[1729489644724,0.000829,69070.0,69069.0,0.52755863]
[1729489644930,0.000829,69070.0,69069.0,0.53255863]
[1729489645467,0.000829,69070.0,69069.0,0.52755863]
[1729489645669,0.000829,69070.0,69069.0,0.53255863]
[1729489645968,0.000829,69070.0,69069.0,0.53755863]
[1729489646288,0.000829,69070.0,69069.0,0.53255863]
[1729489646486,0.000829,69070.0,69069.0,0.53755863]
[1729489646870,0.000829,69070.0,69069.0,0.53255863]
[1729489647095,0.000829,69070.0,69069.0,0.53255845]
[1729489647379,0.000829,69070.0,69069.0,0.53755845]
[1729489649548,0.000829,69070.0,69069.0,0.53255845]
[1729489649992,0.000829,69070.0,69069.0,0.53755845]
[1729489650166,0.000829,69070.0,69069.0,0.53255845]
[1729489650368,0.000829,69070.0,69069.0,0.53755845]
[1729489651805,0.000829,69070.0,69069.0,0.52670243]
[1729489652004,0.000829,69070.0,69069.0,0.54841574]
[1729489652254,0.000829,69070.0,69069.0,0.04348286]
[1729489652422,0.54918842,69070.0,69069.0,0.01452675]
[1729489652752,0.56516815,69070.0,69069.0,0.01]
[1729489653189,0.56516815,69070.0,69069.0,0.005]
[1729489653447,0.56716815,69070.0,69069.0,0.005]
[1729489653866,0.419182,69069.0,69068.0,0.001658]
[1729489654073,0.56814115,69069.0,69068.0,0.001658]
[1729489654307,0.57014115,69069.0,69068.0,0.001658]
[1729489654481,0.56814115,69069.0,69068.0,0.001658]
[1729489656244,0.56814115,69069.0,69068.0,0.002658]
[1729489656731,0.56814115,69069.0,69068.0,0.001658]
[1729489656935,0.56814115,69069.0,69068.0,0.002658]
[1729489657136,0.56814115,69069.0,69068.0,0.001658]
[1729489658620,0.56814115,69069.0,69068.0,0.002658]
[1729489658820,0.56814115,69069.0,69068.0,0.001658]
[1729489659247,0.56814115,69069.0,69068.0,0.002658]
[1729489663189,0.57393615,69069.0,69068.0,0.002658]
[1729489673119,0.57476515,69069.0,69068.0,0.002658]
[1729489674590,0.57476515,69069.0,69068.0,0.004658]
[1729489676112,0.57476515,69069.0,69068.0,0.003658]
[1729489676250,0.57476515,69069.0,69068.0,0.001658]
[1729489682618,0.69035559,69069.0,69068.0,0.001658]
[1729489683039,0.71598923,69069.0,69068.0,0.001658]
[1729489684206,0.71598923,69069.0,69068.0,0.002658]
[1729489686639,0.75866206,69069.0,69068.0,0.002658]
[1729489690605,0.64507162,69069.0,69068.0,0.002658]
[1729489692083,0.64407162,69069.0,69068.0,0.002658]
[1729489692263,0.62743798,69069.0,69068.0,0.002658]
[1729489692468,0.62943798,69069.0,69068.0,0.002658]
[1729489693299,0.62743798,69069.0,69068.0,0.002658]
[1729489694280,0.62943798,69069.0,69068.0,0.002658]
[1729489694705,0.75213812,69069.0,69068.0,0.002658]
[1729489696776,0.86019475,69069.0,69068.0,0.002658]
[1729489697480,0.75213812,69069.0,69068.0,0.002658]
[1729489707410,0.86046925,69069.0,69068.0,0.002658]
[1729489708552,0.8604654,69069.0,69068.0,1e-06]
[1729489708776,0.14481,69056.0,69055.0,0.001638]
[1729489708982,0.4618153,69056.0,69055.0,0.001638]
[1729489709361,0.4638153,69056.0,69055.0,0.001638]
[1729489709761,0.4738153,69056.0,69055.0,0.001638]
[1729489709967,0.4738153,69056.0,69055.0,0.006638]
[1729489711240,0.4718153,69056.0,69055.0,0.001638]
[1729489711777,0.4718153,69056.0,69055.0,0.002638]
[1729489712203,0.4738153,69056.0,69055.0,0.002638]
[1729489712764,0.144833,69045.0,69044.0,0.076038]
[1729489714018,0.144833,69045.0,69044.0,0.081038]
[1729489714489,0.144833,69045.0,69044.0,0.180638]
[1729489715252,0.144833,69045.0,69044.0,0.185638]
[1729489719101,0.16058097,69045.0,69044.0,0.187296]
[1729489720480,0.144833,69045.0,69044.0,0.187296]
[1729489725896,0.144833,69045.0,69044.0,0.011658]
[1729489733916,0.244833,69045.0,69044.0,0.011658]
[1729489739356,0.244833,69045.0,69044.0,0.006658]
[1729489739776,0.244833,69045.0,69044.0,0.011658]
[1729489740221,0.244833,69045.0,69044.0,0.006658]
[1729489740454,0.244833,69045.0,69044.0,0.011658]
[1729489741081,0.244833,69045.0,69044.0,0.006658]
[1729489741472,0.244833,69045.0,69044.0,0.011658]
[1729489742497,0.245662,69045.0,69044.0,0.181958]
[1729489749960,0.245662,69045.0,69044.0,0.011658]
[1729489759585,0.4493836,69045.0,69044.0,0.011658]
[1729489760395,0.328862,69045.0,69044.0,0.011658]
[1729489764031,0.47782115,69045.0,69044.0,0.011658]
[1729489771561,0.39462115,69045.0,69044.0,0.011658]
[1729489792553,0.245662,69045.0,69044.0,0.011658]
[1729489793256,0.245662,69045.0,69044.0,0.110858]
[1729489800030,0.245662,69045.0,69044.0,0.011658]
[1729489811150,0.245662,69045.0,69044.0,0.110258]
[1729489811364,0.245662,69045.0,69044.0,0.194558]
[1729489825107,0.145662,69045.0,69044.0,0.194558]
[1729489825556,0.000829,69045.0,69044.0,0.21463658]
[1729489827157,0.145662,69045.0,69044.0,0.21463658]
[1729489828535,0.145662,69045.0,69044.0,0.20994485]
[1729489828740,0.145662,69045.0,69044.0,0.19924973]
[1729489828892,0.145662,69045.0,69044.0,0.02134973]
[1729489831849,0.145662,69045.0,69044.0,0.02407904]
[1729489833016,0.145662,69045.0,69044.0,0.02134973]
[1729489833790,0.145662,69045.0,69044.0,0.02413614]
[1729489834856,0.145662,69045.0,69044.0,0.03499352]
[1729489835078,0.000829,69045.0,69044.0,0.03499352]
[1729489835336,0.145662,69045.0,69044.0,0.02413614]
[1729489835569,0.145662,69045.0,69044.0,0.03952322]
[1729489839540,0.145662,69045.0,69044.0,0.03952737]
[1729489841152,0.145662,69045.0,69044.0,0.03952953]
[1729489842725,0.145662,69045.0,69044.0,0.02866538]
[1729489842964,0.145662,69045.0,69044.0,0.03952992]
[1729489844003,0.000829,69045.0,69044.0,0.03952992]
[1729489844218,0.145662,69045.0,69044.0,0.03952992]
[1729489849780,0.000829,69045.0,69044.0,0.03952992]
[1729489850038,0.145662,69045.0,69044.0,0.03952992]
[1729489850235,0.145662,69045.0,69044.0,0.0395315]
[1729489852065,0.000829,69045.0,69044.0,0.0395315]
[1729489853985,0.000829,69045.0,69044.0,0.08295684]
[1729489854610,0.000829,69045.0,69044.0,0.03953147]
[1729489856776,0.000829,69045.0,69044.0,0.10470093]
[1729489857202,0.000829,69045.0,69044.0,0.20040093]
[1729489857416,0.000829,69045.0,69044.0,0.13523147]
[1729489857639,0.000829,69045.0,69044.0,0.19588625]
[1729489857852,0.000829,69045.0,69044.0,0.20041532]
[1729489858517,0.000829,69045.0,69044.0,0.20041453]
[1729489859369,0.000829,69045.0,69044.0,0.42174953]
[1729489859808,0.000829,69045.0,69044.0,0.46808742]
[1729489860059,0.000829,69045.0,69044.0,0.61204657]
[1729489860270,0.000829,69045.0,69044.0,0.55315396]
[1729489860487,0.000829,69045.0,69044.0,0.54315396]
[1729489860692,0.000829,69045.0,69044.0,0.54815396]
[1729489861230,0.000829,69045.0,69044.0,0.55315396]
[1729489861770,0.000829,69045.0,69044.0,0.55815396]
[1729489862646,0.000829,69045.0,69044.0,0.55315396]
[1729489862871,0.000829,69045.0,69044.0,0.55815396]
[1729489863717,0.000829,69045.0,69044.0,0.54637851]
[1729489863934,0.000829,69045.0,69044.0,0.55812035]
[1729489864158,0.000829,69045.0,69044.0,0.55312035]
[1729489864988,0.000829,69045.0,69044.0,0.54812035]
[1729489865190,0.000829,69045.0,69044.0,0.55312035]
[1729489865599,0.000829,69045.0,69044.0,0.54812035]
[1729489865783,0.000829,69045.0,69044.0,0.55312035]
[1729489866034,0.000829,69045.0,69044.0,0.54812035]
[1729489866248,0.000829,69045.0,69044.0,0.55312035]
[1729489866788,0.000829,69045.0,69044.0,0.54812035]
[1729489866984,0.000829,69045.0,69044.0,0.55312035]
[1729489867458,0.000829,69045.0,69044.0,0.55312074]
[1729489867613,0.000829,69045.0,69044.0,0.66162325]
[1729489867983,0.000829,69045.0,69044.0,0.49378825]
[1729489868229,0.145662,69045.0,69044.0,0.10753104]
[1729489868445,0.145662,69045.0,69044.0,0.03951708]
[1729489868998,0.145662,69045.0,69044.0,0.03451708]
[1729489869241,0.145662,69045.0,69044.0,0.02951708]
[1729489869401,0.145662,69045.0,69044.0,0.03451708]
[1729489869609,0.145662,69045.0,69044.0,0.02982535]
[1729489870043,0.145662,69045.0,69044.0,0.02029677]
[1729489870463,0.145662,69045.0,69044.0,0.02529677]
[1729489870663,0.145662,69045.0,69044.0,0.02029677]
[1729489870867,0.145662,69045.0,69044.0,0.01251036]
[1729489871210,0.145662,69045.0,69044.0,0.001658]
[1729489871426,0.145662,69045.0,69044.0,0.01750719]
[1729489871842,0.145662,69045.0,69044.0,0.01529133]
[1729489872062,0.145662,69045.0,69044.0,0.02029133]
[1729489872274,0.145662,69045.0,69044.0,0.02529133]
[1729489872419,0.145662,69045.0,69044.0,0.02029133]
[1729489872624,0.145662,69045.0,69044.0,0.01250719]
[1729489873237,0.145662,69045.0,69044.0,0.01750719]
[1729489873625,0.145662,69045.0,69044.0,0.01250719]
[1729489873855,0.145662,69045.0,69044.0,0.01750719]
[1729489874106,0.145662,69045.0,69044.0,0.02250719]
[1729489874368,0.145662,69045.0,69044.0,0.02203628]
[1729489874574,0.145662,69045.0,69044.0,0.006658]
[1729489874768,0.145662,69045.0,69044.0,0.011658]
[1729489874979,0.145662,69045.0,69044.0,0.006658]
[1729489875410,0.424362,69045.0,69044.0,0.006658]
[1729489875870,0.424362,69045.0,69044.0,0.011658]
[1729489876074,0.424362,69045.0,69044.0,0.006658]
[1729489876511,0.424362,69045.0,69044.0,0.011658]
[1729489876947,0.424362,69045.0,69044.0,0.006658]
[1729489877399,0.424362,69045.0,69044.0,0.011658]
[1729489877595,0.424362,69045.0,69044.0,0.006658]
[1729489877951,0.424362,69045.0,69044.0,0.011658]
[1729489890292,0.424362,69045.0,69044.0,0.015367]
[1729489890738,0.57332115,69045.0,69044.0,0.015367]
[1729489901124,0.39462115,69045.0,69044.0,0.015367]
[1729489908918,0.245662,69045.0,69044.0,0.015367]
[1729489911283,0.000829,69045.0,69044.0,0.03076618]
[1729489911731,0.000829,69045.0,69044.0,0.18274754]
[1729489911980,0.000829,69045.0,69044.0,0.18743927]
[1729489912191,0.000829,69045.0,69044.0,0.03791254]
[1729489912405,0.000829,69045.0,69044.0,0.04260427]
[1729489912871,0.000829,69045.0,69044.0,0.03260427]
[1729489913048,0.000829,69045.0,69044.0,0.03760427]
[1729489913477,0.000829,69045.0,69044.0,0.03260427]
[1729489914127,0.000829,69045.0,69044.0,0.03760427]
[1729489914561,0.000829,69045.0,69044.0,0.02807495]
[1729489914774,0.145662,69045.0,69044.0,0.03073428]
[1729489914985,0.145662,69045.0,69044.0,0.0415982]
[1729489915612,0.145662,69045.0,69044.0,0.08499853]
[1729489916691,0.145662,69045.0,69044.0,0.0415982]
[1729489916907,0.145662,69045.0,69044.0,0.08499853]
[1729489917552,0.145662,69045.0,69044.0,0.0415982]
[1729489918180,0.145662,69045.0,69044.0,0.08499853]
[1729489918826,0.145662,69045.0,69044.0,0.0849969]
[1729489919253,0.000829,69045.0,69044.0,0.0849969]
[1729489919512,0.000829,69045.0,69044.0,0.28047866]
[1729489919705,0.000829,69045.0,69044.0,0.37287866]
[1729489919918,0.000829,69045.0,69044.0,0.286078]
[1729489920408,0.000829,69045.0,69044.0,0.141243]
[1729489920619,0.000829,69045.0,69044.0,0.216443]
[1729489920863,0.000829,69045.0,69044.0,0.62373798]
[1729489921100,0.000829,69045.0,69044.0,0.5152347]
[1729489921383,0.000829,69045.0,69044.0,0.5342347]
[1729489921588,0.000829,69045.0,69044.0,0.5292347]
[1729489921799,0.000829,69045.0,69044.0,0.5382347]
[1729489922011,0.000829,69045.0,69044.0,0.5342347]
[1729489922267,0.000829,69045.0,69044.0,0.5292347]
[1729489922437,0.000829,69045.0,69044.0,0.5332347]
[1729489922647,0.000829,69045.0,69044.0,0.5342347]
[1729489923065,0.000829,69045.0,69044.0,0.5382347]
[1729489923269,0.000829,69045.0,69044.0,0.5342347]
[1729489923958,0.000829,69045.0,69044.0,0.52337284]
[1729489924191,0.000829,69045.0,69044.0,0.53421715]
[1729489924456,0.000829,69045.0,69044.0,0.52921715]
[1729489924706,0.000829,69045.0,69044.0,0.53821715]
[1729489925627,0.000829,69045.0,69044.0,0.53321715]
[1729489925854,0.000829,69045.0,69044.0,0.53421715]
[1729489926303,0.000829,69045.0,69044.0,0.53821715]
[1729489926583,0.000829,69045.0,69044.0,0.53421715]
[1729489927048,0.000829,69045.0,69044.0,0.52921715]
[1729489927511,0.000829,69045.0,69044.0,0.6317715]
[1729489927988,0.000829,69045.0,69044.0,0.63760749]
[1729489928195,0.000829,69045.0,69044.0,0.64260749]
[1729489928404,0.000829,69045.0,69044.0,0.62360537]
[1729489928625,0.000829,69045.0,69044.0,0.51020889]
[1729489928826,0.000829,69045.0,69044.0,0.50620889]
[1729489929035,0.000829,69045.0,69044.0,0.51520889]
[1729489929261,0.000829,69045.0,69044.0,0.51120889]
[1729489929468,0.000829,69045.0,69044.0,0.59790982]
[1729489929675,0.000829,69045.0,69044.0,0.60190982]
[1729489931046,0.000829,69045.0,69044.0,0.59690777]
[1729489931264,0.000829,69045.0,69044.0,0.60190777]
[1729489933569,0.000829,69045.0,69044.0,0.58021594]
[1729489934421,0.000829,69045.0,69044.0,0.57121594]
[1729489934626,0.000829,69045.0,69044.0,0.50620684]
[1729489934849,0.000829,69045.0,69044.0,0.51520684]
[1729489935063,0.000829,69045.0,69044.0,0.5802131]
[1729489935474,0.000829,69045.0,69044.0,0.5752131]
[1729489935681,0.000829,69045.0,69044.0,0.5762131]
[1729489935931,0.000829,69045.0,69044.0,0.5802131]
[1729489936839,0.000829,69045.0,69044.0,0.51520684]
[1729489937266,0.000829,69045.0,69044.0,0.53820684]
[1729489937445,0.000829,69045.0,69044.0,0.54920684]
[1729489937956,0.000829,69045.0,69044.0,0.54820624]
[1729489938200,0.000829,69045.0,69044.0,0.54420624]
[1729489938409,0.000829,69045.0,69044.0,0.55320624]
[1729489938776,0.000829,69045.0,69044.0,0.54420624]
[1729489938981,0.000829,69045.0,69044.0,0.54820624]
[1729489939161,0.000829,69045.0,69044.0,0.55320624]
[1729489939373,0.000829,69045.0,69044.0,0.54920624]
[1729489939569,0.000829,69045.0,69044.0,0.65753908]
[1729489939942,0.000829,69045.0,69044.0,0.54920624]
[1729489940285,0.000829,69045.0,69044.0,0.54420624]
[1729489940694,0.000829,69045.0,69044.0,0.55320624]
[1729489941351,0.000829,69045.0,69044.0,0.52659924]
[1729489941582,0.000829,69045.0,69044.0,0.63987337]
[1729489942008,0.000829,69045.0,69044.0,0.55321394]
[1729489942213,0.000829,69045.0,69044.0,0.54821394]
[1729489942424,0.000829,69045.0,69044.0,0.63487157]
[1729489942643,0.000829,69045.0,69044.0,0.54821394]
[1729489942844,0.000829,69045.0,69044.0,0.63487346]
[1729489943044,0.000829,69045.0,69044.0,0.63487257]
[1729489943466,0.000829,69045.0,69044.0,0.55321394]
[1729489943866,0.000829,69045.0,69044.0,0.63487256]
[1729489944073,0.000829,69045.0,69044.0,0.63087256]
[1729489944292,0.000829,69045.0,69044.0,0.55321394]
[1729489944700,0.000829,69045.0,69044.0,0.54821394]
[1729489944905,0.000829,69045.0,69044.0,0.53737277]
[1729489945113,0.000829,69045.0,69044.0,0.54921737]
[1729489945540,0.000829,69045.0,69044.0,0.55321737]
[1729489945741,0.000829,69045.0,69044.0,0.54921737]
[1729489946479,0.000829,69045.0,69044.0,0.54421737]
[1729489946842,0.000829,69045.0,69044.0,0.54921737]
[1729489947246,0.000829,69045.0,69044.0,0.54821737]
[1729489947447,0.000829,69045.0,69044.0,0.54921737]
[1729489947855,0.000829,69045.0,69044.0,0.55321737]
[1729489949761,0.000829,69045.0,69044.0,0.55323486]
[1729489950622,0.000829,69045.0,69044.0,0.66157692]
[1729489952266,0.000829,69045.0,69044.0,0.64980339]
[1729489952482,0.000829,69045.0,69044.0,0.66157698]
[1729489953536,0.000829,69045.0,69044.0,0.51346133]
[1729489953758,0.000829,69045.0,69044.0,0.45148911]
[1729489954400,0.000829,69045.0,69044.0,0.43791003]
[1729489954623,0.000829,69045.0,69044.0,0.34316326]
[1729489955056,0.000829,69045.0,69044.0,0.38474949]
[1729489956768,0.000829,69045.0,69044.0,0.35216326]
[1729489957190,0.000829,69045.0,69044.0,0.37388746]
[1729489957858,0.000829,69045.0,69044.0,0.39126681]
[1729489960639,0.000829,69045.0,69044.0,0.39218176]
[1729489963491,0.000829,69045.0,69044.0,0.5222583]
[1729489964123,0.000829,69045.0,69044.0,0.5452583]
[1729489964332,0.000829,69045.0,69044.0,0.64424335]
[1729489964539,0.000829,69045.0,69044.0,0.51508187]
[1729489964775,0.000829,69045.0,69044.0,0.5848764]
[1729489964984,0.000829,69045.0,69044.0,0.5898764]
[1729489966512,0.000829,69045.0,69044.0,0.4088764]
[1729489967601,0.000829,69045.0,69044.0,0.3998764]
[1729489967851,0.000829,69045.0,69044.0,0.4038764]
[1729489968213,0.000829,69045.0,69044.0,0.40387632]
[1729489968843,0.000829,69045.0,69044.0,0.40887632]
[1729489974529,0.000829,69045.0,69044.0,0.43061763]
[1729489974730,0.000829,69045.0,69044.0,0.40889343]
[1729489975845,0.000829,69045.0,69044.0,0.40389343]
[1729489976047,0.000829,69045.0,69044.0,0.39889343]
[1729489976869,0.000829,69045.0,69044.0,0.40389343]
[1729489977101,0.000829,69045.0,69044.0,0.39889343]
[1729489978005,0.000829,69045.0,69044.0,0.35977288]
[1729489978188,0.000829,69045.0,69044.0,0.39889319]
[1729489982294,0.000829,69045.0,69044.0,0.40389319]
[1729489982544,0.000829,69045.0,69044.0,0.40889319]
[1729489984123,0.000829,69045.0,69044.0,0.35799924]
[1729489984338,0.000829,69045.0,69044.0,0.36977288]
[1729489984598,0.000829,69045.0,69044.0,0.40889141]
[1729489987678,0.000829,69045.0,69044.0,0.36977288]
[1729489987908,0.000829,69045.0,69044.0,0.38715855]
[1729489988641,0.000829,69045.0,69044.0,0.40889064]
[1729489989547,0.000829,69045.0,69044.0,0.39389064]
[1729489989773,0.000829,69045.0,69044.0,0.39889064]
[1729489990926,0.000829,69045.0,69044.0,0.39389064]
[1729489991095,0.000829,69045.0,69044.0,0.38989064]
[1729489991303,0.000829,69045.0,69044.0,0.35977288]
[1729489991507,0.000829,69045.0,69044.0,0.38150293]
[1729489994208,0.000829,69045.0,69044.0,0.20454378]
[1729489994335,0.000829,69045.0,69044.0,0.33492558]
[1729489994536,0.000829,69045.0,69044.0,0.33492599]
[1729489994783,0.000829,69045.0,69044.0,0.31319594]
[1729489995229,0.000829,69045.0,69044.0,0.33492507]
[1729489998276,0.000829,69045.0,69044.0,0.05970827]
[1729489998502,0.145662,69045.0,69044.0,0.05970827]
[1729490000213,0.145662,69045.0,69044.0,0.03797914]
[1729490000420,0.145662,69045.0,69044.0,0.02828741]
[1729490000641,0.323262,69045.0,69044.0,0.01889548]
[1729490001068,0.323262,69045.0,69044.0,0.02066131]
[1729490001479,0.323262,69045.0,69044.0,0.014367]
[1729490001544,0.323262,69045.0,69044.0,0.009367]
[1729490001743,0.323262,69045.0,69044.0,0.010367]
[1729490001957,0.323262,69045.0,69044.0,0.014367]
[1729490002443,0.323262,69045.0,69044.0,0.009367]
[1729490002664,0.423262,69045.0,69044.0,0.009367]
[1729490004128,0.423262,69045.0,69044.0,0.014367]
[1729490005300,0.57222115,69045.0,69044.0,0.014367]
[1729490013213,0.69381077,69045.0,69044.0,0.014367]
[1729490013913,0.57722115,69045.0,69044.0,0.014367]
[1729490023284,0.58222115,69045.0,69044.0,0.014367]
[1729490025740,0.58222115,69045.0,69044.0,0.010367]
[1729490026562,0.58222115,69045.0,69044.0,0.005367]
[1729490035663,0.58422115,69045.0,69044.0,0.005367]
[1729490036106,0.58222115,69045.0,69044.0,0.005367]
[1729490036311,0.58422115,69045.0,69044.0,0.005367]
[1729490036430,0.58222115,69045.0,69044.0,0.005367]
[1729490036880,0.58422115,69045.0,69044.0,0.005367]
[1729490039161,0.58222115,69045.0,69044.0,0.005367]
[1729490043102,0.58222115,69045.0,69044.0,0.006367]
[1729490043309,0.58222115,69045.0,69044.0,0.009367]
[1729490043459,0.58222115,69045.0,69044.0,0.005367]
[1729490051319,0.145662,69045.0,69044.0,0.005367]
[1729490052056,0.145662,69045.0,69044.0,0.00989643]
[1729490052269,0.145662,69045.0,69044.0,0.005367]
[1729490052650,0.145662,69045.0,69044.0,0.010367]
[1729490052900,0.245662,69045.0,69044.0,0.010367]
[1729490053131,0.245662,69045.0,69044.0,0.19257531]
[1729490053132,0.000829,69045.0,69044.0,0.19257531]
[1729490053365,0.000829,69045.0,69044.0,0.19079636]
[1729490053621,0.000829,69045.0,69044.0,0.19757531]
[1729490054549,0.000829,69045.0,69044.0,0.20842865]
[1729490054817,0.000829,69045.0,69044.0,0.35795538]
[1729490055045,0.000829,69045.0,69044.0,0.45791478]
[1729490055297,0.000829,69045.0,69044.0,0.47925414]
[1729490055563,0.000829,69045.0,69044.0,0.53189604]
[1729490055811,0.000829,69045.0,69044.0,0.52789604]
[1729490056076,0.000829,69045.0,69044.0,0.52289604]
[1729490056291,0.000829,69045.0,69044.0,0.70199863]
[1729490056541,0.000829,69045.0,69044.0,0.67631806]
[1729490056775,0.000829,69045.0,69044.0,0.67131806]
[1729490057014,0.000829,69045.0,69044.0,0.58858461]
[1729490057251,0.000829,69045.0,69044.0,0.58458461]
[1729490057500,0.000829,69045.0,69044.0,0.65358762]
[1729490057994,0.000829,69045.0,69044.0,0.65458762]
[1729490058260,0.000829,69045.0,69044.0,0.56788259]
[1729490058505,0.000829,69045.0,69044.0,0.63289262]
[1729490059009,0.000829,69045.0,69044.0,0.60468019]
[1729490059246,0.000829,69045.0,69044.0,0.62201671]
[1729490059477,0.000829,69045.0,69044.0,0.48118171]
[1729490059749,0.000829,69045.0,69044.0,0.39883516]